lending/lending_fUSD_20241025
["ID","MTS","AMOUNT","RATE_DAILY","PERIOD"]
[340827348,1729887049062,-500.0,0.00060999,120]
[340827349,1729887049071,-500.0,0.00060999,120]
[340827350,1729887049084,-396.66759343,0.00060999,120]
[340827351,1729887049094,-500.0,0.00060999,120]
[340827352,1729887049103,-500.0,0.00060999,120]
[340827353,1729887049112,-500.0,0.00060999,120]
[340827354,1729887049121,-339.72,0.00060999,120]
[340827355,1729887049130,-500.0,0.00060999,120]
[340827356,1729887049139,-2077.15,0.00060999,120]
[340827357,1729887049148,-500.0,0.00060999,120]
[340827358,1729887049157,-2077.15,0.00060999,120]
[340827359,1729887049166,-500.0,0.00060999,120]
[340827360,1729887049175,-2077.15,0.00060999,120]
[340827361,1729887049185,-500.0,0.00060999,120]
[340827362,1729887049194,-2077.15,0.00060999,120]
[340827363,1729887049203,-500.0,0.00060999,120]
[340827364,1729887049212,-2077.15,0.00060999,120]
[340827365,1729887049223,-500.0,0.00060999,120]
[340827366,1729887049236,-500.0,0.00060999,120]
[340827367,1729887049246,-2077.15,0.00060999,120]
[340827368,1729887049256,-500.0,0.00060999,120]
[340827369,1729887049266,-500.0,0.00060999,120]
[340827370,1729887049276,-2077.15,0.00060999,120]
[340827371,1729887049286,-187.98595098,0.00060999,120]
[340827372,1729887049296,-500.0,0.00060999,120]
[340827373,1729887049305,-2077.15,0.00060999,120]
[340827374,1729887049316,-500.0,0.00060999,120]
[340827375,1729887049326,-500.0,0.00060999,120]
[340827376,1729887049334,-500.0,0.00060999,120]
[340827377,1729887049344,-500.0,0.00060999,120]
[340827378,1729887049355,-500.0,0.00060999,120]
[340827379,1729887049364,-500.0,0.00060999,120]
[340827380,1729887049374,-500.0,0.00060999,120]
[340827381,1729887049383,-500.0,0.00060999,120]
[340827382,1729887049393,-500.0,0.00060999,120]
[340827383,1729887049404,-500.0,0.00060999,120]
[340827384,1729887049413,-500.0,0.00060999,120]
[340827385,1729887049423,-500.0,0.00060999,120]
[340827386,1729887049432,-500.0,0.00060999,120]
[340827387,1729887049442,-151.0,0.00060999,120]
[340827388,1729887049452,-610.35,0.00060999,120]
[340827389,1729887049462,-151.0,0.00060999,120]
[340827390,1729887049471,-610.35,0.00060999,120]
[340827391,1729887049480,-610.35,0.00060999,120]
[340827392,1729887049490,-610.35,0.00060999,120]
[340827393,1729887049500,-610.35,0.00060999,120]
[340827394,1729887049510,-610.35,0.00060999,120]
[340827395,1729887049520,-610.35,0.00060999,120]
[340827396,1729887049530,-610.35,0.00060999,120]
[340827397,1729887049540,-500.0,0.00060999,120]
[340827398,1729887049553,-500.0,0.00060999,120]
[340827399,1729887049562,-151.0,0.00060999,120]
[340827400,1729887049572,-500.0,0.00060999,120]
[340827401,1729887049581,-500.0,0.00060999,120]
[340827402,1729887049591,-500.0,0.00060999,120]
[340827403,1729887049600,-500.0,0.00060999,120]
[340827404,1729887049610,-500.0,0.00060999,120]
[340827405,1729887049619,-500.0,0.00060999,120]
[340827406,1729887049628,-500.0,0.00060999,120]
[340827407,1729887049638,-500.0,0.00060999,120]
[340827408,1729887049647,-500.0,0.00060999,120]
[340827409,1729887049656,-500.0,0.00060999,120]
[340827410,1729887049665,-500.0,0.00060999,120]
[340827411,1729887049675,-500.0,0.00060999,120]
[340827412,1729887049686,-500.0,0.00060999,120]
[340827413,1729887049699,-500.0,0.00060999,120]
[340827414,1729887049708,-500.0,0.00060999,120]
[340827415,1729887049717,-500.0,0.00060999,120]
[340827416,1729887049727,-500.0,0.00060999,120]
[340827417,1729887049737,-500.0,0.00060999,120]
[340827418,1729887049746,-500.0,0.00060999,120]
[340827419,1729887049756,-500.0,0.00060999,120]
[340827420,1729887049765,-500.0,0.00060999,120]
[340827421,1729887049776,-407.93108871,0.00060999,120]
[340827422,1729887049786,-623.57,0.00060999,120]
[340827423,1729887049795,-623.57,0.00060999,120]
[340827424,1729887049804,-623.57,0.00060999,120]
[340827425,1729887049813,-623.57,0.00060999,120]
[340827426,1729887049823,-623.57,0.00060999,120]
[340827427,1729887049832,-623.57,0.00060999,120]
[340827428,1729887049842,-623.57,0.00060999,120]
[340827429,1729887049851,-623.57,0.00060999,120]
[340827430,1729887049860,-500.0,0.00060999,120]
[340827431,1729887049869,-500.0,0.00060999,120]
[340827432,1729887049879,-500.0,0.00060999,120]
[340827433,1729887049888,-500.0,0.00060999,120]
[340827434,1729887049898,-500.0,0.00060999,120]
[340827435,1729887049907,-402.36290244,0.00060999,120]
[340827436,1729887049916,-500.0,0.00060999,120]
[340827437,1729887049926,-500.0,0.00060999,120]
[340827438,1729887049935,-500.0,0.00060999,120]
[340827439,1729887049944,-413.31362342,0.00060999,120]
[340827440,1729887049954,-500.0,0.00060999,120]
[340827441,1729887049963,-500.0,0.00060999,120]
[340827442,1729887049972,-500.0,0.00060999,120]
[340827443,1729887049981,-500.0,0.00060999,120]
[340827444,1729887049990,-500.0,0.00060999,120]
[340827445,1729887049999,-500.0,0.00060999,120]
[340827446,1729887050009,-500.0,0.00060999,120]
[340827447,1729887050018,-500.0,0.00060999,120]
[340827448,1729887050028,-500.0,0.00060999,120]
[340827449,1729887050037,-500.0,0.00060999,120]
[340827450,1729887050046,-500.0,0.00060999,120]
[340827451,1729887050056,-500.0,0.00060999,120]
[340827452,1729887050065,-500.0,0.00060999,120]
[340827453,1729887050074,-500.0,0.00060999,120]
[340827454,1729887050083,-500.0,0.00060999,120]
[340827455,1729887050092,-500.0,0.00060999,120]
[340827456,1729887050102,-500.0,0.00060999,120]
[340827457,1729887050111,-500.0,0.00060999,120]
[340827458,1729887050120,-500.0,0.00060999,120]
[340827459,1729887050129,-500.0,0.00060999,120]
[340827460,1729887050138,-500.0,0.00060999,120]
[340827461,1729887050147,-500.0,0.00060999,120]
[340827462,1729887050157,-500.0,0.00060999,120]
[340827463,1729887050166,-500.0,0.00060999,120]
[340827464,1729887050175,-500.0,0.00060999,4]
[340827465,1729887050184,-500.0,0.00060999,4]
[340827466,1729887050194,-500.0,0.00060999,4]
[340827467,1729887050204,-500.0,0.00060999,4]
[340827468,1729887050213,-422.93977912,0.00060999,4]
[340827470,1729887098592,1296.94575823,0.0004301,30]
[340827472,1729887758353,150.0,0.0002,2]
[340827474,1729887944136,-1105.42839193,0.00042,2]
[340827475,1729887944156,-5172.89821107,0.000476,2]
[340827476,1729887944176,-500.0,0.00054795,120]
[340827477,1729887944196,-152.0,0.00057388,3]
[340827478,1729887944217,-510.03,0.00057881,2]
[340827479,1729887944238,-15448.40723012,0.00059362,2]
[340827480,1729887944260,-23890.0,0.00059363,2]
[340827481,1729887944281,-200.0,0.00059373,2]
[340827482,1729887944302,-381.82,0.0005938,2]
[340827483,1729887944322,-2059.82,0.00059438,2]
[340827484,1729887944341,-7285.03,0.00059473,2]
[340827485,1729887944361,-157.0,0.00059738,2]
[340827486,1729887944381,-200.0,0.00059738,120]
[340827487,1729887944402,-299.99,0.00059738,120]
[340827488,1729887944423,-176.682,0.00059754,119]
[340827489,1729887944444,-500.0,0.00059754,7]
[340827490,1729887944465,-250.0,0.00059754,120]
[340827491,1729887944485,-925.43,0.0005984,2]
[340827492,1729887944510,-151.08,0.0005984,2]
[340827493,1729887944533,-168.06,0.0005984,2]
[340827494,1729887944556,-151.08,0.0005989,2]
[340827495,1729887944582,-151.08,0.0005994,2]
[340827496,1729887944603,-151.08,0.0005999,2]
[340827497,1729887944629,-565.41,0.0006,120]
[340827498,1729887944660,-1000.0,0.0006,30]
[340827499,1729887944689,-1000.0,0.0006,30]
[340827500,1729887944713,-1000.0,0.0006,33]
[340827501,1729887944738,-419.06354955,0.0006,33]
[340827502,1729888032132,-4778.05781165,0.00049,2]
[340827503,1729888032156,-484.52,0.00057456,2]
[340827504,1729888032177,-840.0,0.00059689,120]
[340827505,1729888032198,-484.52,0.00059719,2]
[340827506,1729888032219,-580.93645045,0.0006,33]
[340827507,1729888032241,-1296.0,0.0006,33]
[340827508,1729888032262,-1000.0,0.0006,5]
[340827509,1729888032283,-1000.0,0.0006,5]
[340827510,1729888032302,-1000.0,0.0006,35]
[340827511,1729888032323,-1000.0,0.0006,35]
[340827512,1729888032345,-452.0,0.0006,33]
[340827513,1729888032365,-1000.0,0.0006,30]
[340827514,1729888032387,-151.08,0.0006004,2]
[340827515,1729888032409,-151.08,0.00060089,2]
[340827516,1729888032430,-151.08,0.00060139,2]
[340827517,1729888032451,-500.0,0.00060204,120]
[340827518,1729888032472,-500.0,0.00060274,120]
[340827519,1729888032493,-500.0,0.00060296,120]
[340827520,1729888032518,-5560.82163412,0.0006039,2]
[340827521,1729888032658,-500.0,0.00060394,120]
[340827522,1729888032680,-500.0,0.00060425,120]
[340827523,1729888032700,-629.39725797,0.00060429,120]
[340827524,1729888032720,-265.26767371,0.00060481,7]
[340827525,1729888033106,-62.30941227,0.00060481,7]
[340827526,1729888033126,-2788.0099235,0.000605,90]
[340827527,1729888033149,-386.38333791,0.00060638,120]
[340827528,1729888033169,-501.52697118,0.0006064,120]
[340827529,1729888033188,-500.0,0.00060666,120]
[340827530,1729888033209,-150.0,0.00060732,120]
[340827531,1729888033229,-500.0,0.00060788,120]
[340827532,1729888033249,-2095.3129,0.00060789,2]
[340827533,1729888033270,-1356.77435067,0.0006079,15]
[340827534,1729888033291,-3640.0235,0.0006079,2]
[340827535,1729888033309,-1000.0,0.000608,2]
[340827536,1729888033329,-1895.3666,0.000608,2]
[340827537,1729888033349,-757.42,0.00060822,60]
[340827538,1729888033371,-757.42,0.00060822,60]
[340827539,1729888033390,-425.03,0.00060822,60]
[340827540,1729888033410,-757.42,0.00060822,60]
[340827541,1729888033430,-757.42,0.00060822,60]
[340827542,1729888033449,-425.03,0.00060822,60]
[340827543,1729888033469,-757.42,0.00060822,60]
[340827544,1729888033489,-425.03,0.00060822,60]
[340827545,1729888033511,-757.42,0.00060822,60]
[340827546,1729888033530,-425.03,0.00060822,60]
[340827547,1729888033552,-757.42,0.00060822,60]
[340827548,1729888033572,-757.42,0.00060822,60]
[340827549,1729888033598,-757.42,0.00060822,60]
[340827550,1729888033620,-512.73,0.00060822,60]
[340827551,1729888033641,-500.0,0.00060861,120]
[340827552,1729888033662,-2292.6461,0.0006088,2]
[340827553,1729888033682,-182.1578,0.0006088,2]
[340827554,1729888033703,-211.33929593,0.00060889,32]
[340827555,1729888033722,-315.27808749,0.00060889,2]
[340827556,1729888033742,-32452.3338,0.00060889,2]
[340827557,1729888033762,-1196.8497,0.0006089,2]
[340827558,1729888033783,-1113.4946,0.0006089,2]
[340827559,1729888033803,-8491.0719,0.0006089,2]
[340827560,1729888033823,-50607.2537,0.0006089,2]
[340827561,1729888033849,-1641.989,0.0006089,2]
[340827562,1729888033870,-1535.6873,0.00060899,120]
[340827563,1729888033891,-5191.49728111,0.000609,2]
[340827564,1729888033910,-831.36721654,0.000609,2]
[340827565,1729888033931,-1343.25000572,0.000609,2]
[340827566,1729888033952,-179.54590109,0.000609,2]
[340827567,1729888033972,-17223.01018989,0.000609,2]
[340827568,1729888033992,-1024.39557875,0.000609,2]
[340827569,1729888034012,-200.96230334,0.000609,2]
[340827570,1729888034034,-2444.44444444,0.000609,2]
[340827571,1729888034054,-10000.0,0.000609,120]
[340827572,1729888034074,-500.0,0.00060936,120]
[340827573,1729888034099,-500.0,0.00060973,15]
[340827574,1729888034120,-500.0,0.00060973,2]
[340827575,1729888034140,-500.0,0.00060973,15]
[340827576,1729888034165,-659.40085434,0.00060979,14]
[340827577,1729888034186,-500.0,0.00060979,120]
[340827578,1729888034206,-500.0,0.00060979,120]
[340827579,1729888034226,-500.0,0.00060979,120]
[340827580,1729888034246,-1125.13,0.00060979,120]
[340827581,1729888034267,-500.0,0.00060979,120]
[340827582,1729888034288,-500.0,0.00060979,120]
[340827583,1729888034308,-500.0,0.00060979,120]
[340827584,1729888034328,-500.0,0.00060979,120]
[340827585,1729888034353,-500.0,0.00060979,120]
[340827586,1729888034373,-500.0,0.00060979,120]
[340827587,1729888034394,-500.0,0.00060979,120]
[340827588,1729888034415,-500.0,0.00060979,120]
[340827589,1729888034435,-500.0,0.00060979,120]
[340827590,1729888034455,-243.98576027,0.00060979,120]
[340827591,1729888034476,-500.0,0.00060979,120]
[340827592,1729888034500,-659.40085434,0.00060979,14]
[340827593,1729888034524,-500.0,0.0006098,120]
[340827594,1729888034543,-1022.41,0.0006098,120]
[340827595,1729888034564,-1051.5,0.0006098,120]
[340827596,1729888034587,-1247.92,0.0006098,120]
[340827597,1729888034608,-500.0,0.0006098,120]
[340827598,1729888034629,-500.0,0.0006098,120]
[340827599,1729888034650,-500.0,0.0006098,120]
[340827600,1729888034671,-500.0,0.0006098,120]
[340827601,1729888034691,-500.0,0.0006098,120]
[340827602,1729888034711,-500.0,0.0006098,120]
[340827603,1729888034732,-500.0,0.0006098,120]
[340827604,1729888034751,-500.0,0.0006098,120]
[340827605,1729888034772,-512.37581991,0.0006098,120]
[340827606,1729888034792,-500.0,0.0006098,120]
[340827607,1729888034812,-500.0,0.0006098,120]
[340827608,1729888034834,-9482.15,0.0006098,120]
[340827609,1729888034856,-500.0,0.0006098,120]
[340827610,1729888034877,-500.0,0.0006098,120]
[340827611,1729888034897,-500.0,0.0006098,120]
[340827612,1729888034917,-488.53616679,0.0006098,120]
[340827613,1729888034938,-500.0,0.0006098,120]
[340827614,1729888034959,-500.0,0.0006098,21]
[340827615,1729888034981,-500.0,0.0006098,120]
[340827616,1729888035001,-500.0,0.0006098,120]
[340827617,1729888035024,-500.0,0.0006098,120]
[340827618,1729888035044,-500.0,0.0006098,120]
[340827619,1729888035064,-500.0,0.0006098,120]
[340827620,1729888035085,-500.0,0.0006098,120]
[340827621,1729888035108,-500.0,0.0006098,120]
[340827622,1729888035129,-500.0,0.0006098,120]
[340827623,1729888035149,-500.0,0.0006098,120]
[340827624,1729888035169,-500.0,0.0006098,120]
[340827625,1729888035188,-500.0,0.0006098,120]
[340827626,1729888035208,-500.0,0.0006098,120]
[340827627,1729888035229,-500.0,0.0006098,120]
[340827628,1729888035250,-500.0,0.0006098,120]
[340827629,1729888035271,-500.0,0.0006098,120]
[340827630,1729888035291,-500.0,0.0006098,120]
[340827631,1729888035311,-500.0,0.0006098,120]
[340827632,1729888035330,-500.0,0.0006098,120]
[340827633,1729888035352,-500.0,0.0006098,120]
[340827634,1729888035372,-197.97257304,0.0006098,7]
[340827635,1729888035392,-153.4,0.0006098,120]
[340827636,1729888035415,-5931.50857401,0.0006098,12]
[340827637,1729888041259,621.57682694,0.0002,5]
[340827638,1729888042093,-757.42,0.00059863,60]
[340827639,1729888042115,-300.0,0.000606,22]
[340827640,1729888042137,-600.0,0.000607,22]
[340827641,1729888042156,-900.0,0.000608,22]
[340827642,1729888042177,-348.55280885,0.00060889,2]
[340827643,1729888042197,-30902.53733473,0.000609,60]
[340827644,1729888081561,9228.42317306,0.00015,2]
[340827645,1729888081589,18195.85680185,0.00015,2]
[340827656,1729888151096,-2873.60590711,0.0002,2]
[340827657,1729888169126,-1019.00968955,0.0002,2]
[340827658,1729888206361,500.0,0.00054795,120]
[340827669,1729888238241,-27695.40418463,0.00043013,2]
[340827670,1729888238251,-18543.51986668,0.00043013,2]
[340827671,1729888238263,-6698.81678178,0.00043013,2]
[340827672,1729888238275,-2837.4908233,0.00043013,2]
[340827673,1729888238541,-72762.31641569,0.00043013,2]
[340827674,1729888238556,-395.76,0.00043013,2]
[340827675,1729888238569,-2100.92790881,0.00043013,2]
[340827676,1729888238589,-449.17212671,0.00043013,2]
[340827677,1729888238600,-8590.9042437,0.00043013,2]
[340827678,1729888238609,-182.73,0.00059947,120]
[340827679,1729888238618,-250.0,0.00059962,120]
[340827680,1729888238628,-162.73,0.00059966,2]
[340827681,1729888238638,-179.6,0.00059966,120]
[340827682,1729888238648,-500.68536412,0.0006,120]
[340827683,1729888238659,-500.0,0.00060362,120]
[340827684,1729888238668,-500.0,0.00060468,120]
[340827685,1729888238678,-315.27808748,0.00060879,2]
[340827686,1729888238688,-211.33929593,0.00060879,32]
[340827687,1729888238697,-1105.12,0.00060899,120]
[340827688,1729888238705,-500.0,0.00060899,120]
[340827689,1729888238715,-500.0,0.00060899,120]
[340827690,1729888238724,-500.0,0.00060899,120]
[340827691,1729888238733,-500.0,0.00060899,120]
[340827692,1729888238743,-188277.91399026,0.000609,60]
[340827693,1729888238754,-1200.0,0.000609,22]
[340827694,1729888238763,-300.00000099,0.000609,2]
[340827695,1729888238772,-682.93038582,0.000609,2]
[340827696,1729888238782,-1629.62962964,0.000609,2]
[340827697,1729888238792,-1694.1465262,0.000609,30]
[340827698,1729888238801,-179.54590108,0.000609,2]
[340827699,1729888238811,-895.50000382,0.000609,2]
[340827700,1729888238822,-500.0,0.00060955,120]
[340827701,1729888238833,-500.0,0.00060973,2]
[340827702,1729888238843,-1105.12,0.00060978,120]
[340827703,1729888238853,-500.0,0.00060978,120]
[340827704,1729888238865,-500.0,0.00060978,120]
[340827705,1729888238874,-153.4,0.00060978,120]
[340827706,1729888238883,-46328.387363,0.00060979,14]
[340827707,1729888238894,-9678.1,0.00060979,120]
[340827708,1729888238905,-500.0,0.00060979,120]
[340827709,1729888238915,-500.0,0.00060979,21]
[340827710,1729888238925,-500.0,0.00060979,120]
[340827711,1729888238935,-500.0,0.00060979,120]
[340827712,1729888238945,-500.0,0.00060979,120]
[340827713,1729888238954,-500.0,0.00060979,120]
[340827714,1729888238965,-500.0,0.00060979,120]
[340827715,1729888238974,-500.0,0.00060979,120]
[340827716,1729888238983,-500.0,0.00060979,120]
[340827717,1729888238992,-500.0,0.00060979,120]
[340827718,1729888239002,-500.0,0.00060979,120]
[340827719,1729888239012,-62679.5829029,0.00060979,14]
[340827720,1729888239021,-54977.7505459,0.00060979,12]
[340827721,1729888239031,-500.0,0.0006098,120]
[340827722,1729888239040,-500.0,0.0006098,120]
[340827723,1729888239049,-500.0,0.0006098,120]
[340827724,1729888239059,-500.0,0.0006098,120]
[340827725,1729888239068,-1000.0,0.0006098,120]
[340827726,1729888239077,-500.0,0.0006098,120]
[340827727,1729888239087,-577.05,0.0006098,120]
[340827728,1729888239097,-500.0,0.0006098,120]
[340827729,1729888239106,-1351.85,0.0006098,120]
[340827730,1729888239115,-500.0,0.0006098,120]
[340827731,1729888239125,-500.0,0.0006098,120]
[340827732,1729888239134,-500.0,0.0006098,120]
[340827733,1729888239144,-500.0,0.0006098,120]
[340827734,1729888239153,-500.0,0.0006098,120]
[340827735,1729888239162,-500.0,0.0006098,120]
[340827736,1729888239172,-500.0,0.0006098,120]
[340827737,1729888239181,-500.0,0.0006098,120]
[340827738,1729888239191,-500.0,0.0006098,4]
[340827739,1729888239200,-500.0,0.0006098,120]
[340827740,1729888239210,-500.0,0.0006098,120]
[340827741,1729888239219,-500.0,0.0006098,120]
[340827742,1729888239228,-500.0,0.0006098,120]
[340827743,1729888239238,-1000.0,0.0006098,120]
[340827744,1729888239248,-500.0,0.0006098,120]
[340827745,1729888239257,-500.0,0.0006098,120]
[340827746,1729888239267,-500.0,0.0006098,120]
[340827747,1729888239276,-500.0,0.0006098,120]
[340827748,1729888239286,-500.0,0.0006098,120]
[340827749,1729888239295,-979.81,0.0006098,120]
[340827750,1729888239304,-30543.1947477,0.0006098,12]
[340827751,1729888239314,-500.0,0.00060987,120]
[340827752,1729888239323,-224.99376734,0.00060988,31]
[340827753,1729888239332,-500.0,0.00060988,120]
[340827754,1729888239342,-500.0,0.00060988,120]
[340827755,1729888239351,-556.3,0.00060988,120]
[340827756,1729888239360,-500.0,0.00060988,120]
[340827757,1729888239370,-520.59608414,0.00060988,120]
[340827758,1729888239379,-500.0,0.00060988,120]
[340827759,1729888239388,-500.0,0.00060988,120]
[340827760,1729888239398,-500.0,0.00060988,120]
[340827761,1729888239407,-9678.1,0.00060988,120]
[340827762,1729888239416,-500.0,0.00060988,120]
[340827763,1729888239425,-500.0,0.00060988,120]
[340827764,1729888239435,-500.0,0.00060988,120]
[340827765,1729888239444,-500.0,0.00060988,120]
[340827766,1729888239454,-500.0,0.00060988,21]
[340827767,1729888239463,-500.0,0.00060988,120]
[340827768,1729888239473,-500.0,0.00060988,120]
[340827769,1729888239482,-500.0,0.00060988,120]
[340827770,1729888239491,-500.0,0.00060988,120]
[340827771,1729888239502,-1351.85,0.00060988,120]
[340827772,1729888239511,-1351.85,0.00060988,120]
[340827773,1729888239521,-500.0,0.00060988,120]
[340827774,1729888239531,-500.0,0.00060988,120]
[340827775,1729888239544,-500.0,0.00060988,120]
[340827776,1729888239555,-500.0,0.00060988,120]
[340827777,1729888239567,-500.0,0.00060988,120]
[340827778,1729888239577,-218.81540517,0.00060988,120]
[340827779,1729888239591,-500.0,0.00060988,120]
[340827780,1729888239600,-225.96263111,0.00060988,120]
[340827781,1729888239707,-500.0,0.00060988,120]
[340827782,1729888239717,-500.0,0.00060988,120]
[340827783,1729888239730,-500.0,0.00060988,4]
[340827784,1729888239741,-500.0,0.00060988,120]
[340827785,1729888239752,-500.0,0.00060988,120]
[340827786,1729888239764,-500.0,0.00060988,120]
[340827787,1729888239774,-500.0,0.00060988,120]
[340827788,1729888239783,-500.0,0.00060988,120]
[340827789,1729888239793,-500.0,0.00060988,120]
[340827790,1729888239803,-500.0,0.00060988,120]
[340827791,1729888239813,-500.0,0.00060988,120]
[340827792,1729888239822,-500.0,0.00060988,120]
[340827793,1729888239832,-1105.12,0.00060988,120]
[340827794,1729888239841,-1105.12,0.00060988,120]
[340827795,1729888239851,-500.0,0.00060988,120]
[340827797,1729888239860,-500.0,0.00060988,120]
[340827799,1729888239870,-979.81,0.00060988,120]
[340827801,1729888239879,-500.0,0.00060988,120]
[340827803,1729888239888,-24434.5557982,0.00060988,12]
[340827804,1729888239898,-6108.63894955,0.00060989,12]
[340827805,1729888239907,-99677.84918475,0.00060989,12]
[340827846,1729888240831,-4169.01295725,0.00060989,12]
[340827848,1729888240842,-500.0,0.00060989,2]
[340827850,1729888240851,-500.0,0.00060989,2]
[340827852,1729888240860,-500.0,0.00060989,120]
[340827854,1729888240869,-500.0,0.00060989,120]
[340827856,1729888240879,-431.22724178,0.00060989,120]
[340827858,1729888240888,-500.0,0.00060989,120]
[340827859,1729888240897,-500.0,0.00060989,120]
[340827861,1729888240906,-500.0,0.00060989,120]
[340827863,1729888240916,-500.0,0.00060989,120]
[340827865,1729888240926,-500.0,0.00060989,120]
[340827867,1729888240935,-500.0,0.00060989,120]
[340827869,1729888240944,-500.0,0.00060989,120]
[340827871,1729888240952,-619.64,0.00060989,120]
[340827873,1729888240961,-503.42339525,0.00060989,120]
[340827874,1729888240970,-500.0,0.00060989,120]
[340827876,1729888240979,-500.0,0.00060989,120]
[340827878,1729888240988,-500.0,0.00060989,120]
[340827880,1729888240998,-500.0,0.00060989,120]
[340827882,1729888241008,-500.0,0.00060989,120]
[340827884,1729888241017,-500.0,0.00060989,120]
[340827886,1729888241026,-168.59373657,0.00060989,120]
[340827888,1729888241035,-500.0,0.00060989,120]
[340827890,1729888241044,-500.0,0.00060989,120]
[340827892,1729888241054,-1247.92,0.00060989,120]
[340827894,1729888241063,-1247.92,0.00060989,120]
[340827896,1729888241072,-500.0,0.00060989,120]
[340827898,1729888241081,-500.0,0.00060989,120]
[340827900,1729888241090,-500.0,0.00060989,120]
[340827902,1729888241099,-500.0,0.00060989,120]
[340827904,1729888241108,-500.0,0.00060989,120]
[340827906,1729888241117,-500.0,0.00060989,120]
[340827908,1729888241126,-500.0,0.00060989,120]
[340827910,1729888241137,-500.0,0.00060989,120]
[340827912,1729888241146,-500.0,0.00060989,120]
[340827914,1729888241155,-500.0,0.00060989,120]
[340827916,1729888241164,-500.0,0.00060989,120]
[340827918,1729888241173,-500.0,0.00060989,120]
[340827920,1729888241182,-500.0,0.00060989,120]
[340827921,1729888241191,-500.0,0.00060989,120]
[340827923,1729888241200,-500.0,0.00060989,120]
[340827925,1729888241209,-500.0,0.00060989,120]
[340827927,1729888241218,-500.0,0.00060989,120]
[340827929,1729888241227,-500.0,0.00060989,120]
[340827931,1729888241236,-500.0,0.00060989,120]
[340827933,1729888241245,-500.0,0.00060989,120]
[340827935,1729888241255,-500.0,0.00060989,120]
[340827937,1729888241264,-500.0,0.00060989,120]
[340827938,1729888241272,-500.0,0.00060989,120]
[340827940,1729888241281,-500.0,0.00060989,120]
[340827942,1729888241290,-500.0,0.00060989,120]
[340827944,1729888241299,-5000.0,0.00060989,120]
[340827946,1729888241308,-5000.0,0.00060989,120]
[340827948,1729888241317,-5000.0,0.00060989,120]
[340827950,1729888241326,-5000.0,0.00060989,120]
[340827952,1729888241335,-5000.0,0.00060989,120]
[340827954,1729888241344,-5000.0,0.00060989,120]
[340827955,1729888241353,-5000.0,0.00060989,120]
[340827958,1729888241363,-5000.0,0.00060989,120]
[340827960,1729888241374,-5000.0,0.00060989,120]
[340827962,1729888241383,-5000.0,0.00060989,120]
[340827964,1729888241393,-5000.0,0.00060989,120]
[340827965,1729888241402,-5000.0,0.00060989,120]
[340827967,1729888241412,-5000.0,0.00060989,120]
[340827969,1729888241423,-5000.0,0.00060989,120]
[340827971,1729888241432,-5000.0,0.00060989,120]
[340827973,1729888241442,-5000.0,0.00060989,120]
[340827975,1729888241452,-5000.0,0.00060989,120]
[340827977,1729888241462,-5000.0,0.00060989,120]